[Event "1st Bangalore GM-Open-A 2024"]
[Site "Bangalore"]
[Date "2024.01.23"]
[Round "7.5"]
[White "Pranav Anand"]
[Black "Viani Antonio Dcunha"]
[Result "1/2-1/2"]
[ECO "C18"]
[WhiteElo "2513"]
[BlackElo "2407"]
[Annotator "RC"]
[PlyCount "128"]
[EventDate "2024.01.20"]
[EventType "swiss"]
[EventCountry "IND"]
[SourceTitle "playchess.com"]
[Source "ChessBase"]
[SourceQuality "1"]
[TimeControl "5400+30"]

1. e4 {[%emt 0:00:03]} e6 {[%emt 0:00:18]} 2. d4 {[%emt 0:00:05]} d5 {[%emt 0:00:05]} 3. Nc3 {[%emt 0:00:05]} Bb4 {[%emt 0:00:07]} 4. e5 {[%emt 0:00:07]} c5 {[%emt 0:00:07]} 5. a3 {[%emt 0:00:05]} Bxc3+ {[%emt 0:00:12]} 6. bxc3 {[%emt 0:00:04]} Ne7 {[%emt 0:00:16]} 7. h4 {[%emt 0:00:13]} Qc7 {[%emt 0:01:20]} 8. Rh3 {[%emt 0:00:34]} b6 {[%emt 0:03:02]} 9. a4 {[%emt 0:02:09]} Ba6 {[%emt 0:03:14]} 10. Bb5+ {[%emt 0:00:36]} Bxb5 {[%emt 0:02:33]} 11. axb5 {[%emt 0:00:14]} Qb7 {[%emt 0:07:11]} 12. h5 {[%emt 0:06:45]} h6 {[%emt 0:00:55]} 13. Qg4 {[%emt 0:06:12]} Rg8 {[%emt 0:03:33]} 14. Ne2 {[%emt 0:04:38]} Nd7 {[%emt 0:04:50]} 15. Kf1 {[%emt 0:11:17]} a6 {[%emt 0:02:59]} 16. bxa6 {[%emt 0:01:32]} Rxa6 {[%emt 0:00:18]} 17. Rb1 {[%emt 0:00:02]} Ra4 {[%emt 0:06:24]} 18. Qf4 {[%emt 0:15:03]} Qa6 {[%emt 0:04:17]} 19. Rd3 {[%emt 0:01:11]} Nc6 {[%emt 0:06:42]} 20. Qd2 {[%emt 0:05:01]} Ra2 {[%emt 0:11:15]} 21. Qd1 {[%emt 0:07:25]} Qa4 {[%emt 0:04:09]} 22. Rg3 {[%emt 0:04:39]} Ne7 {[%emt 0:07:23]} 23. Bf4 {[%emt 0:10:32]} Nf5 {[%emt 0:10:57]} 24. Rh3 {[%emt 0:02:21]} g5 {[%emt 0:06:24]} 25. hxg6 {[%emt 0:01:13]} Rxg6 {[%emt 0:00:04]} 26. Rc1 {[%emt 0:00:53]} Ra3 {[%emt 0:04:20]} 27. Rd3 {[%emt 0:03:57]} h5 {[%emt 0:03:54]} 28. Kg1 {[%emt 0:01:22]} Qc4 {[%emt 0:01:28]} 29. Kh2 {[%emt 0:02:42]} h4 {[%emt 0:01:29]} 30. Rb1 {[%emt 0:08:28]} Ra2 {[%emt 0:01:48]} 31. Rc1 {[%emt 0:00:23]} Kd8 {[%emt 0:00:40]} 32. Bd2 {[%emt 0:02:02]} Kc7 {[%emt 0:01:31]} 33. Nf4 {[%emt 0:00:12]} Rg7 {[%emt 0:00:15]} 34. Ra1 {[%emt 0:00:16]} Kb7 {[%emt 0:00:59]} 35. Rxa2 {[%emt 0:00:27]} Qxa2 {[%emt 0:00:02]} 36. Be3 {[%emt 0:01:11]} Qc4 {[%emt 0:01:41]} 37. Bc1 {[%emt 0:00:40]} Rg8 {[%emt 0:01:05]} 38. Nh3 {[%emt 0:01:52]} Rg7 {[%emt 0:00:41]} 39. Bg5 {[%emt 0:00:26]} Rg8 {[%emt 0:00:28]} 40. Qh5 {[%emt 0:00:23]} Rg7 {[%emt 0:00:14]} 41. Bf6 {[%emt 0:00:29]} Nxf6 {[%emt 0:00:23]} 42. exf6 {[%emt 0:00:01]} Rg6 {[%emt 0:00:07]} 43. Nf4 {[%emt 0:00:21]} Rxf6 {[%emt 0:00:19]} 44. Qg5 {[%emt 0:00:25]} Rh6 {[%emt 0:00:40]} 45. Qg8 {[%emt 0:00:19]} cxd4 {[%emt 0:00:26]} 46. Qxf7+ {[%emt 0:00:16]} Qc7 {[%emt 0:00:06]} 47. Qxc7+ {[%emt 0:00:04]} Kxc7 {[%emt 0:00:02]} 48. cxd4 {[%emt 0:00:03]} b5 {[%emt 0:00:28]} 49. c3 {[%emt 0:00:50]} Kd6 {[%emt 0:00:43]} 50. Rd1 {[%emt 0:00:22]} Kd7 {[%emt 0:00:30]} 51. Ra1 {[%emt 0:00:53]} b4 {[%emt 0:00:30]} 52. cxb4 {[%emt 0:00:48]} Nxd4 {[%emt 0:00:07]} 53. Nd3 {[%emt 0:00:26]} Kc6 {[%emt 0:00:52]} 54. Kh3 {[%emt 0:00:43]} Kb5 {[%emt 0:00:54]} 55. Rc1 {[%emt 0:00:20]} Nc6 {[%emt 0:00:56]} 56. Rc2 {[%emt 0:01:07]} Kb6 {[%emt 0:00:30]} 57. f3 {[%emt 0:00:56]} e5 {[%emt 0:01:18]} 58. Re2 {[%emt 0:00:44]} Kb5 {[%emt 0:00:21]} 59. Kg4 {[%emt 0:00:45]} e4 {[%emt 0:00:31]} 60. fxe4 {[%emt 0:00:34]} dxe4 {[%emt 0:00:06]} 61. Nf4 {[%emt 0:01:00]} Kxb4 {[%emt 0:00:44]} 62. Kg5 {[%emt 0:00:13]} Rh7 {[%emt 0:00:18]} 63. Rxe4+ {[%emt 0:00:05]} Kc5 {[%emt 0:00:07]} 64. Ng6 {[%emt 0:00:18]} h3 {[%emt 0:00:18]} 1/2-1/2

[Event "1st Bangalore GM-Open-A 2024"]
[Site "Bangalore"]
[Date "2024.01.23"]
[Round "7.6"]
[White "Shyam, Sundar M."]
[Black "Ritviz, Parab"]
[Result "1-0"]
[ECO "C41"]
[WhiteElo "2497"]
[BlackElo "2391"]
[Annotator "RC"]
[PlyCount "113"]
[EventDate "2024.01.20"]
[EventType "swiss"]
[EventCountry "IND"]
[SourceTitle "playchess.com"]
[Source "ChessBase"]
[SourceQuality "1"]
[TimeControl "5400+30"]

1. e4 {[%emt 0:00:11]} e5 {[%emt 0:00:36]} 2. Nc3 {[%emt 0:00:10]} Nf6 {[%emt 0:07:47]} 3. Bc4 {[%emt 0:00:47]} Bb4 {[%emt 0:05:54]} 4. Nge2 {[%emt 0:06:35]} O-O {[%emt 0:04:03]} 5. O-O {[%emt 0:06:55]} Nxe4 {[%emt 0:22:19]} 6. Nxe4 {[%emt 0:01:10]} d5 {[%emt 0:00:05]} 7. c3 {[%emt 0:00:31]} Be7 {[%emt 0:00:07]} 8. Bd3 {[%emt 0:00:05]} dxe4 {[%emt 0:00:04]} 9. Bxe4 {[%emt 0:00:03]} Nd7 {[%emt 0:01:43]} 10. d4 {[%emt 0:01:13]} Nf6 {[%emt 0:10:19]} 11. Bc2 {[%emt 0:00:12]} exd4 {[%emt 0:00:30]} 12. Nxd4 {[%emt 0:00:00]} Bg4 {[%emt 0:01:44]} 13. Qd3 {[%emt 0:00:18]} Qd5 {[%emt 0:01:55]} 14. h3 {[%emt 0:35:55]} Bd7 {[%emt 0:05:02]} 15. Bf4 {[%emt 0:04:06]} Bc6 {[%emt 0:09:15]} 16. Nxc6 {[%emt 0:01:21]} Qxc6 {[%emt 0:00:02]} 17. Bb3 {[%emt 0:07:36]} Rad8 {[%emt 0:02:52]} 18. Qc4 {[%emt 0:00:05]} Bc5 {[%emt 0:08:27]} 19. Rad1 {[%emt 0:17:37]} Rxd1 {[%emt 0:11:16]} 20. Rxd1 {[%emt 0:00:31]} b5 {[%emt 0:00:26]} 21. Qd3 {[%emt 0:01:15]} Re8 {[%emt 0:01:06]} 22. Kf1 {[%emt 0:01:36]} Bb6 {[%emt 0:01:36]} 23. Re1 {[%emt 0:03:43]} Rxe1+ {[%emt 0:00:52]} 24. Kxe1 {[%emt 0:00:02]} Qe4+ {[%emt 0:02:03]} 25. Qxe4 {[%emt 0:00:10]} Nxe4 {[%emt 0:00:02]} 26. f3 {[%emt 0:00:31]} Nc5 {[%emt 0:00:05]} 27. Bc2 {[%emt 0:00:13]} h6 {[%emt 0:02:57]} 28. h4 {[%emt 0:01:45]} Kf8 {[%emt 0:00:33]} 29. h5 {[%emt 0:01:02]} Ke7 {[%emt 0:00:43]} 30. Ke2 {[%emt 0:00:23]} a5 {[%emt 0:00:12]} 31. g4 {[%emt 0:00:53]} Ne6 {[%emt 0:00:37]} 32. Bd2 {[%emt 0:00:05]} c5 {[%emt 0:00:40]} 33. f4 {[%emt 0:00:08]} Kd6 {[%emt 0:00:33]} 34. a4 {[%emt 0:01:34]} b4 {[%emt 0:00:30]} 35. Bb3 {[%emt 0:00:26]} g6 {[%emt 0:00:29]} 36. Kf3 {[%emt 0:05:18]} gxh5 {[%emt 0:00:08]} 37. gxh5 {[%emt 0:00:02]} f5 {[%emt 0:00:14]} 38. Ke2 {[%emt 0:01:32]} bxc3 {[%emt 0:00:55]} 39. bxc3 {[%emt 0:00:03]} Ng7 {[%emt 0:00:30]} 40. Bf7 {[%emt 0:00:50]} Ke7 {[%emt 0:00:30]} 41. Bg6 {[%emt 0:00:02]} c4 {[%emt 0:00:32]} 42. Be1 {[%emt 0:00:51]} Bc7 {[%emt 0:00:42]} 43. Ke3 {[%emt 0:00:31]} Bb6+ {[%emt 0:00:27]} 44. Kf3 {[%emt 0:00:01]} Ke6 {[%emt 0:00:33]} 45. Bh4 {[%emt 0:00:32]} Bc7 {[%emt 0:00:31]} 46. Bf2 {[%emt 0:00:10]} Ke7 {[%emt 0:00:28]} 47. Bc5+ {[%emt 0:01:03]} Bd6 {[%emt 0:00:27]} 48. Bb6 {[%emt 0:00:33]} Ne6 {[%emt 0:00:26]} 49. Bxf5 {[%emt 0:00:57]} Nc5 {[%emt 0:00:36]} 50. Bc2 {[%emt 0:01:17]} Nb3 {[%emt 0:00:35]} 51. Ke4 {[%emt 0:00:51]} Bc5 {[%emt 0:00:26]} 52. Bxc5+ {[%emt 0:00:57]} Nxc5+ {[%emt 0:00:02]} 53. Kd4 {[%emt 0:00:18]} Ne6+ {[%emt 0:00:51]} 54. Ke5 {[%emt 0:00:39]} Nc5 {[%emt 0:00:16]} 55. f5 {[%emt 0:00:49]} Nd7+ {[%emt 0:00:47]} 56. Kd4 {[%emt 0:00:04]} Nf6 {[%emt 0:00:11]} 57. Bd1 {[%emt 0:00:02]} 1-0

[Event "1st Bangalore GM-Open-A 2024"]
[Site "Bangalore"]
[Date "2024.01.23"]
[Round "7.7"]
[White "Chanda, Sandipan"]
[Black "Audi Ameya"]
[Result "1-0"]
[ECO "D97"]
[WhiteElo "2486"]
[BlackElo "2385"]
[Annotator "RC"]
[PlyCount "145"]
[EventDate "2024.01.20"]
[EventType "swiss"]
[EventCountry "IND"]
[SourceTitle "playchess.com"]
[Source "ChessBase"]
[SourceQuality "1"]
[TimeControl "5400+30"]

1. d4 {[%emt 0:00:04]} Nf6 {[%emt 0:00:04]} 2. c4 {[%emt 0:00:08]} g6 {[%emt 0:00:05]} 3. Nc3 {[%emt 0:00:07]} d5 {[%emt 0:00:12]} 4. Nf3 {[%emt 0:00:16]} Bg7 {[%emt 0:00:05]} 5. Qb3 {[%emt 0:00:14]} dxc4 {[%emt 0:00:39]} 6. Qxc4 {[%emt 0:00:07]} O-O {[%emt 0:00:08]} 7. e4 {[%emt 0:00:06]} Nc6 {[%emt 0:00:32]} 8. h3 {[%emt 0:00:18]} e5 {[%emt 0:00:52]} 9. dxe5 {[%emt 0:02:57]} Nd7 {[%emt 0:00:30]} 10. e6 {[%emt 0:00:11]} fxe6 {[%emt 0:00:25]} 11. Be3 {[%emt 0:02:57]} Nde5 {[%emt 0:07:46]} 12. Nxe5 {[%emt 0:00:11]} Nxe5 {[%emt 0:00:03]} 13. Qb3 {[%emt 0:00:26]} b6 {[%emt 0:04:46]} 14. Rd1 {[%emt 0:03:24]} Qe7 {[%emt 0:00:52]} 15. Be2 {[%emt 0:02:44]} c5 {[%emt 0:00:06]} 16. O-O {[%emt 0:03:06]} Nc6 {[%emt 0:18:49]} 17. Nb5 {[%emt 0:02:22]} Ba6 {[%emt 0:03:04]} 18. a4 {[%emt 0:26:17]} Bxb5 {[%emt 0:03:38]} 19. axb5 {[%emt 0:00:12]} Nd4 {[%emt 0:00:04]} 20. Qc4 {[%emt 0:05:35]} a5 {[%emt 0:09:28]} 21. f4 {[%emt 0:02:39]} Rad8 {[%emt 0:08:42]} 22. e5 {[%emt 0:03:57]} Nxe2+ {[%emt 0:04:53]} 23. Qxe2 {[%emt 0:00:02]} Kf7 {[%emt 0:07:55]} 24. Qf3 {[%emt 0:01:40]} Rxd1 {[%emt 0:03:02]} 25. Rxd1 {[%emt 0:00:07]} Rd8 {[%emt 0:00:03]} 26. Rxd8 {[%emt 0:04:35]} Qxd8 {[%emt 0:00:03]} 27. Qb7+ {[%emt 0:00:13]} Kg8 {[%emt 0:00:02]} 28. Kf2 {[%emt 0:01:13]} h5 {[%emt 0:04:29]} 29. Ke2 {[%emt 0:03:04]} Bf8 {[%emt 0:00:31]} 30. g3 {[%emt 0:06:09]} Be7 {[%emt 0:02:56]} 31. g4 {[%emt 0:02:32]} hxg4 {[%emt 0:00:22]} 32. hxg4 {[%emt 0:00:02]} Kf7 {[%emt 0:00:12]} 33. Qh1 {[%emt 0:06:07]} Qe8 {[%emt 0:02:41]} 34. Qh7+ {[%emt 0:06:47]} Kf8 {[%emt 0:00:04]} 35. Qh8+ {[%emt 0:00:42]} Kf7 {[%emt 0:00:05]} 36. Qh7+ {[%emt 0:00:03]} Kf8 {[%emt 0:00:02]} 37. Kf3 {[%emt 0:05:16]} Qa8+ {[%emt 0:05:28]} 38. Kf2 {[%emt 0:00:05]} Qe4 {[%emt 0:00:03]} 39. f5 {[%emt 0:00:42]} Qxg4 {[%emt 0:05:49]} 40. Bh6+ {[%emt 0:02:47]} Ke8 {[%emt 0:00:03]} 41. Qg8+ {[%emt 0:00:20]} Kd7 {[%emt 0:00:41]} 42. Qxe6+ {[%emt 0:00:06]} Kd8 {[%emt 0:01:41]} 43. Qxb6+ {[%emt 0:00:07]} Kc8 {[%emt 0:01:08]} 44. Qc6+ {[%emt 0:01:41]} Kd8 {[%emt 0:00:03]} 45. Qa8+ {[%emt 0:00:19]} Kc7 {[%emt 0:00:08]} 46. Qxa5+ {[%emt 0:01:14]} Kb7 {[%emt 0:00:03]} 47. Qa6+ {[%emt 0:00:08]} Kb8 {[%emt 0:00:04]} 48. Qb6+ {[%emt 0:00:18]} Kc8 {[%emt 0:00:04]} 49. Qc6+ {[%emt 0:01:06]} Kd8 {[%emt 0:00:02]} 50. Qd5+ {[%emt 0:03:40]} Kc8 {[%emt 0:00:26]} 51. f6 {[%emt 0:01:25]} Qh4+ {[%emt 0:00:10]} 52. Ke2 {[%emt 0:01:58]} Qh5+ {[%emt 0:00:58]} 53. Ke1 {[%emt 0:00:14]} Qxh6 {[%emt 0:02:01]} 54. Qc6+ {[%emt 0:00:54]} Kd8 {[%emt 0:00:32]} 55. Qd5+ {[%emt 0:02:18]} Ke8 {[%emt 0:00:22]} 56. fxe7 {[%emt 0:01:27]} Qc1+ {[%emt 0:00:14]} 57. Ke2 {[%emt 0:00:39]} Qxb2+ {[%emt 0:00:04]} 58. Kf3 {[%emt 0:00:04]} Qc3+ {[%emt 0:00:40]} 59. Kg4 {[%emt 0:00:09]} Kxe7 {[%emt 0:01:32]} 60. Qd6+ {[%emt 0:00:01]} Ke8 {[%emt 0:00:13]} 61. Qxg6+ {[%emt 0:00:09]} Ke7 {[%emt 0:00:11]} 62. Qf6+ {[%emt 0:00:21]} Ke8 {[%emt 0:00:04]} 63. Qe6+ {[%emt 0:00:42]} Kd8 {[%emt 0:00:18]} 64. b6 {[%emt 0:01:04]} Qd4+ {[%emt 0:02:50]} 65. Kg5 {[%emt 0:00:09]} Qe3+ {[%emt 0:00:04]} 66. Kg6 {[%emt 0:00:16]} Qe4+ {[%emt 0:01:03]} 67. Kg7 {[%emt 0:00:40]} c4 {[%emt 0:00:51]} 68. Qd6+ {[%emt 0:00:29]} Ke8 {[%emt 0:00:03]} 69. Qg6+ {[%emt 0:00:30]} Qxg6+ {[%emt 0:00:02]} 70. Kxg6 {[%emt 0:00:03]} Kd7 {[%emt 0:00:17]} 71. e6+ {[%emt 0:00:24]} Kxe6 {[%emt 0:00:32]} 72. b7 {[%emt 0:00:04]} c3 {[%emt 0:00:03]} 73. b8=Q {[%emt 0:00:06]} 1-0

[Event "1st Bangalore GM-Open-A 2024"]
[Site "Bangalore"]
[Date "2024.01.23"]
[Round "7.8"]
[White "Tologon tegin, Semetei"]
[Black "Srihari L R"]
[Result "0-1"]
[ECO "A06"]
[WhiteElo "2384"]
[BlackElo "2469"]
[Annotator "RC"]
[PlyCount "94"]
[EventDate "2024.01.20"]
[EventType "swiss"]
[EventCountry "IND"]
[SourceTitle "playchess.com"]
[Source "ChessBase"]
[SourceQuality "1"]
[TimeControl "5400+30"]

1. Nf3 {[%emt 0:02:35]} d5 {[%emt 0:01:13]} 2. e3 {[%emt 0:00:00]} c5 {[%emt 0:00:55]} 3. b3 {[%emt 0:00:00]} Nc6 {[%emt 0:00:09]} 4. Bb2 {[%emt 0:00:00]} f6 {[%emt 0:00:06]} 5. d4 {[%emt 0:01:46]} cxd4 {[%emt 0:00:54]} 6. exd4 {[%emt 0:00:19]} Bg4 {[%emt 0:00:13]} 7. Be2 {[%emt 0:00:38]} e6 {[%emt 0:02:26]} 8. O-O {[%emt 0:01:03]} Bd6 {[%emt 0:00:35]} 9. Re1 {[%emt 0:01:16]} Nge7 {[%emt 0:06:14]} 10. Nh4 {[%emt 0:19:29]} Bxe2 {[%emt 0:03:25]} 11. Qxe2 {[%emt 0:01:21]} e5 {[%emt 0:00:40]} 12. dxe5 {[%emt 0:16:41]} fxe5 {[%emt 0:02:23]} 13. Nf3 {[%emt 0:05:25]} e4 {[%emt 0:15:36]} 14. Ng5 {[%emt 0:01:39]} Nf5 {[%emt 0:26:14]} 15. Qg4 {[%emt 0:05:56]} Qd7 {[%emt 0:27:22]} 16. Nc3 {[%emt 0:21:22]} Nfd4 {[%emt 0:05:11]} 17. Qd1 {[%emt 0:13:38]} Be7 {[%emt 0:00:19]} 18. Ne2 {[%emt 0:03:18]} Nxe2+ {[%emt 0:02:11]} 19. Qxe2 {[%emt 0:00:12]} O-O {[%emt 0:00:04]} 20. Nh3 {[%emt 0:00:28]} Rae8 {[%emt 0:00:48]} 21. Rad1 {[%emt 0:01:13]} Bb4 {[%emt 0:00:39]} 22. c3 {[%emt 0:01:42]} Bc5 {[%emt 0:00:01]} 23. Kh1 {[%emt 0:00:38]} Ne5 {[%emt 0:00:32]} 24. Rf1 {[%emt 0:00:31]} Ng4 {[%emt 0:01:54]} 25. Bc1 {[%emt 0:01:08]} h5 {[%emt 0:01:47]} 26. Nf4 {[%emt 0:00:09]} Rf5 {[%emt 0:01:03]} 27. h3 {[%emt 0:00:16]} Nf6 {[%emt 0:00:08]} 28. Be3 {[%emt 0:00:45]} Bd6 {[%emt 0:00:29]} 29. Qd2 {[%emt 0:00:27]} Bxf4 {[%emt 0:00:37]} 30. Bxf4 {[%emt 0:00:03]} Qf7 {[%emt 0:00:44]} 31. Be3 {[%emt 0:00:09]} b6 {[%emt 0:00:20]} 32. Rc1 {[%emt 0:00:20]} Nd7 {[%emt 0:00:11]} 33. c4 {[%emt 0:00:06]} Nc5 {[%emt 0:00:59]} 34. Bxc5 {[%emt 0:00:42]} bxc5 {[%emt 0:00:00]} 35. cxd5 {[%emt 0:00:37]} e3 {[%emt 0:00:01]} 36. Qe2 {[%emt 0:01:48]} Rxf2 {[%emt 0:00:09]} 37. Rxf2 {[%emt 0:00:03]} exf2 {[%emt 0:00:04]} 38. Qf1 {[%emt 0:00:01]} Qf4 {[%emt 0:00:07]} 39. Rd1 {[%emt 0:00:21]} Qg3 {[%emt 0:00:05]} 40. d6 {[%emt 0:01:29]} Re1 {[%emt 0:00:04]} 41. d7 {[%emt 0:00:03]} Rxf1+ {[%emt 0:00:04]} 42. Rxf1 {[%emt 0:00:04]} Qd3 {[%emt 0:00:03]} 43. Rxf2 {[%emt 0:00:03]} Qxd7 {[%emt 0:00:04]} 44. Rf3 {[%emt 0:00:32]} Qd2 {[%emt 0:00:46]} 45. a4 {[%emt 0:00:04]} c4 {[%emt 0:00:13]} 46. bxc4 {[%emt 0:00:02]} Qc1+ {[%emt 0:00:33]} 47. Kh2 {[%emt 0:00:02]} Qxc4 {[%emt 0:00:04]} 0-1

[Event "1st Bangalore GM-Open-A 2024"]
[Site "Bangalore"]
[Date "2024.01.23"]
[Round "7.9"]
[White "Fedorov, Alexei"]
[Black "Neelotpal, Das"]
[Result "0-1"]
[ECO "C54"]
[WhiteElo "2457"]
[BlackElo "2329"]
[Annotator "RC"]
[PlyCount "104"]
[EventDate "2024.01.20"]
[EventType "swiss"]
[EventCountry "IND"]
[SourceTitle "playchess.com"]
[Source "ChessBase"]
[SourceQuality "1"]
[TimeControl "5400+30"]

1. e4 {[%emt 0:00:04]} e5 {[%emt 0:00:06]} 2. Nf3 {[%emt 0:00:07]} Nc6 {[%emt 0:00:04]} 3. Bc4 {[%emt 0:00:06]} Bc5 {[%emt 0:00:15]} 4. c3 {[%emt 0:00:38]} Nf6 {[%emt 0:00:08]} 5. d3 {[%emt 0:00:05]} O-O {[%emt 0:00:51]} 6. Bg5 {[%emt 0:00:09]} d6 {[%emt 0:00:21]} 7. O-O {[%emt 0:04:17]} h6 {[%emt 0:00:25]} 8. Bh4 {[%emt 0:00:03]} a5 {[%emt 0:01:05]} 9. Nbd2 {[%emt 0:00:49]} g5 {[%emt 0:02:22]} 10. Bg3 {[%emt 0:00:16]} Bg4 {[%emt 0:01:41]} 11. h3 {[%emt 0:01:08]} Bh5 {[%emt 0:00:39]} 12. a3 {[%emt 0:05:42]} Kh8 {[%emt 0:03:04]} 13. b4 {[%emt 0:00:30]} Ba7 {[%emt 0:00:45]} 14. Qb3 {[%emt 0:12:09]} Bg6 {[%emt 0:04:00]} 15. Kh1 {[%emt 0:10:06]} Nh5 {[%emt 0:01:57]} 16. Bd5 {[%emt 0:00:43]} Qc8 {[%emt 0:29:44]} 17. Bh2 {[%emt 0:06:31]} a4 {[%emt 0:02:01]} 18. Qd1 {[%emt 0:08:26]} Ne7 {[%emt 0:00:43]} 19. Ba2 {[%emt 0:00:22]} Ng7 {[%emt 0:05:48]} 20. d4 {[%emt 0:01:36]} f6 {[%emt 0:00:34]} 21. Re1 {[%emt 0:02:25]} b5 {[%emt 0:06:25]} 22. Rc1 {[%emt 0:09:50]} Qb7 {[%emt 0:04:46]} 23. Qe2 {[%emt 0:01:07]} Rad8 {[%emt 0:04:08]} 24. c4 {[%emt 0:02:39]} c6 {[%emt 0:04:59]} 25. c5 {[%emt 0:07:03]} dxc5 {[%emt 0:00:39]} 26. bxc5 {[%emt 0:01:26]} exd4 {[%emt 0:01:14]} 27. Bd6 {[%emt 0:00:36]} d3 {[%emt 0:01:51]} 28. Qf1 {[%emt 0:05:10]} Bb8 {[%emt 0:02:19]} 29. e5 {[%emt 0:02:39]} fxe5 {[%emt 0:08:30]} 30. Bxb8 {[%emt 0:00:30]} Qxb8 {[%emt 0:00:04]} 31. Nxe5 {[%emt 0:00:45]} Ngf5 {[%emt 0:00:07]} 32. Nef3 {[%emt 0:02:18]} Qc7 {[%emt 0:04:59]} 33. Rcd1 {[%emt 0:04:44]} Nd5 {[%emt 0:02:50]} 34. Bxd5 {[%emt 0:04:35]} Rxd5 {[%emt 0:00:04]} 35. Ne4 {[%emt 0:00:33]} Rfd8 {[%emt 0:00:30]} 36. Rd2 {[%emt 0:00:43]} Qf4 {[%emt 0:01:35]} 37. Kg1 {[%emt 0:03:39]} Nh4 {[%emt 0:01:04]} 38. Nxh4 {[%emt 0:03:30]} Bxe4 {[%emt 0:03:05]} 39. Rxe4 {[%emt 0:00:14]} Qxe4 {[%emt 0:00:29]} 40. Nf3 {[%emt 0:00:03]} Qe7 {[%emt 0:00:32]} 41. Qa1+ {[%emt 0:00:27]} Qg7 {[%emt 0:00:06]} 42. Qc1 {[%emt 0:00:48]} Kg8 {[%emt 0:00:17]} 43. Nh2 {[%emt 0:00:11]} Qe7 {[%emt 0:02:59]} 44. Ng4 {[%emt 0:00:16]} h5 {[%emt 0:00:34]} 45. Ne3 {[%emt 0:00:16]} Rxc5 {[%emt 0:00:15]} 46. Qd1 {[%emt 0:00:05]} Qf7 {[%emt 0:00:06]} 47. g4 {[%emt 0:01:01]} hxg4 {[%emt 0:00:44]} 48. hxg4 {[%emt 0:00:03]} Qg6 {[%emt 0:00:32]} 49. Nf5 {[%emt 0:01:44]} Rxf5 {[%emt 0:00:05]} 50. gxf5 {[%emt 0:00:03]} Qxf5 {[%emt 0:00:02]} 51. Qh5 {[%emt 0:00:17]} Kg7 {[%emt 0:00:11]} 52. Qh2 {[%emt 0:00:39]} Qf4 {[%emt 0:00:23]} 0-1

[Event "1st Bangalore GM-Open-A 2024"]
[Site "Bangalore"]
[Date "2024.01.23"]
[Round "7.10"]
[White "Aradhya, Garg"]
[Black "Neelash Saha"]
[Result "0-1"]
[ECO "E15"]
[WhiteElo "2390"]
[BlackElo "2446"]
[Annotator "RC"]
[PlyCount "102"]
[EventDate "2024.01.20"]
[EventType "swiss"]
[EventCountry "IND"]
[SourceTitle "playchess.com"]
[Source "ChessBase"]
[SourceQuality "1"]
[TimeControl "5400+30"]

1. d4 {[%emt 0:00:02]} Nf6 {[%emt 0:00:29]} 2. c4 {[%emt 0:00:05]} e6 {[%emt 0:00:11]} 3. Nf3 {[%emt 0:00:08]} b6 {[%emt 0:00:24]} 4. g3 {[%emt 0:04:46]} Ba6 {[%emt 0:00:27]} 5. Qc2 {[%emt 0:00:37]} Bb7 {[%emt 0:02:42]} 6. Bg2 {[%emt 0:00:05]} c5 {[%emt 0:04:01]} 7. d5 {[%emt 0:00:34]} exd5 {[%emt 0:02:46]} 8. cxd5 {[%emt 0:00:04]} Bxd5 {[%emt 0:03:31]} 9. Nc3 {[%emt 0:15:09]} Bc6 {[%emt 0:03:57]} 10. Bg5 {[%emt 0:10:04]} Be7 {[%emt 0:06:30]} 11. e4 {[%emt 0:04:25]} h6 {[%emt 0:15:37]} 12. Bf4 {[%emt 0:10:11]} Nh5 {[%emt 0:02:08]} 13. Be3 {[%emt 0:00:56]} d6 {[%emt 0:00:11]} 14. O-O-O {[%emt 0:00:54]} Nd7 {[%emt 0:02:55]} 15. e5 {[%emt 0:03:21]} Nxe5 {[%emt 0:00:48]} 16. Nxe5 {[%emt 0:01:43]} Bxg2 {[%emt 0:00:03]} 17. Rhg1 {[%emt 0:10:07]} Bb7 {[%emt 0:00:07]} 18. Bxc5 {[%emt 0:13:00]} O-O {[%emt 0:11:07]} 19. Ba3 {[%emt 0:02:13]} Rc8 {[%emt 0:01:30]} 20. Rd4 {[%emt 0:05:28]} b5 {[%emt 0:06:58]} 21. Rgd1 {[%emt 0:01:37]} Qe8 {[%emt 0:00:05]} 22. Nd3 {[%emt 0:06:00]} a5 {[%emt 0:00:20]} 23. Bxd6 {[%emt 0:00:27]} Bxd6 {[%emt 0:00:25]} 24. Rxd6 {[%emt 0:00:02]} Qe7 {[%emt 0:01:36]} 25. Nf4 {[%emt 0:03:05]} Nxf4 {[%emt 0:01:51]} 26. gxf4 {[%emt 0:00:02]} Bf3 {[%emt 0:00:37]} 27. Rd7 {[%emt 0:01:06]} Bxd1 {[%emt 0:01:23]} 28. Qxd1 {[%emt 0:00:05]} Qf6 {[%emt 0:00:09]} 29. Kb1 {[%emt 0:00:04]} b4 {[%emt 0:01:49]} 30. Ne4 {[%emt 0:00:10]} Qxf4 {[%emt 0:00:41]} 31. Rd4 {[%emt 0:00:34]} Qxh2 {[%emt 0:00:39]} 32. a4 {[%emt 0:00:14]} bxa3 {[%emt 0:00:19]} 33. bxa3 {[%emt 0:00:16]} Qb8+ {[%emt 0:00:21]} 34. Ka2 {[%emt 0:00:09]} Qc7 {[%emt 0:00:09]} 35. Qd2 {[%emt 0:00:19]} Rfd8 {[%emt 0:00:43]} 36. Nd6 {[%emt 0:00:07]} Qc2+ {[%emt 0:00:13]} 37. Qxc2 {[%emt 0:00:03]} Rxc2+ {[%emt 0:00:04]} 38. Kb3 {[%emt 0:00:03]} Rxf2 {[%emt 0:00:27]} 39. Kc4 {[%emt 0:00:48]} Rf6 {[%emt 0:00:10]} 40. Nb7 {[%emt 0:00:06]} Rxd4+ {[%emt 0:00:05]} 41. Kxd4 {[%emt 0:00:03]} Rf3 {[%emt 0:00:09]} 42. Nxa5 {[%emt 0:00:05]} Rxa3 {[%emt 0:00:06]} 43. Nc6 {[%emt 0:00:06]} g6 {[%emt 0:00:16]} 44. Ne5 {[%emt 0:00:10]} Kg7 {[%emt 0:00:07]} 45. Ke4 {[%emt 0:00:05]} h5 {[%emt 0:00:10]} 46. Kf4 {[%emt 0:00:07]} h4 {[%emt 0:00:09]} 47. Kg4 {[%emt 0:00:02]} h3 {[%emt 0:00:12]} 48. Nf3 {[%emt 0:00:03]} f5+ {[%emt 0:00:08]} 49. Kf4 {[%emt 0:00:05]} Kf6 {[%emt 0:00:16]} 50. Kg3 {[%emt 0:00:03]} h2 {[%emt 0:00:06]} 51. Kxh2 {[%emt 0:00:05]} Rxf3 {[%emt 0:00:04]} 0-1